Cogmind - Beta 16.1 @@@ ROGUE MODE // 2026.04.26 @ 14:04:50 Player: szymekc Result: Escaped! Performance ------------- Evolutions (9) 4500 Regions Visited (24) 4800 Robots Destroyed (344) 1720 Value Destroyed (15804) 15804 Prototype IDs (228) 4560 Alien Tech Used (4) 800 Bonus (12049) 12049 TOTAL SCORE: 44233 Bonus ------- High Alert Combat Kills 4048 Follower Combat Kills 2801 Hunted by Unchained 500 Network Hubs Disabled 200 Registered with UFD 300 Met Optimus in HQ 500 Met Zhirov 300 MAIN.C Attacked Warlord 500 Warlord Defense Kills 3828 Built Enhanced Grunts 300 A7 Reached Mainframe 300 Met R17 at Cetus 500 Win 3000 Friendly Fire -5028 Cogmind --------- Core Integrity 1340/1600 Matter 175/300 Energy 1195/2200 System Corruption 0% Temperature Cool (6) Movement Flying (27) Location To Epsilon Eridani Parts ------- > --- POWER (2) -------- Hybrid Graviton Reactor > --- PROPULSION (8) --- Experimental Gyrokinetic Inverter Combat Linear Gravjet Xenon Bombardment Thruster Xenon Bombardment Thruster Experimental Q-thruster > --- UTILITY (12) ----- 2N-1CE's Frost Array Concept Chromion Battery Spectral Analyzer Advanced Signal Interpreter Femtoactuators Graphene Brace A0-MCA's Component Scanner Concept Navigation Harness > --- WEAPON (3) ------- (None) > --- INVENTORY (5) ---- Combat Linear Gravjet Subatomic Replicator Improved Potential Cannon Experimental Jetlance Peak State ------------ > --- POWER ------------ Graviton Reactor Concept Zero-point Core > --- PROPULSION ------- Experimental Antigrav System Gravjet Array Gravjet Array Concept Combat Aerolev Unit Concept Gyrokinetic System Concept Gyrokinetic System > --- UTILITY ---------- Concept Antigrav Storage Unit Spectral Analyzer Experimental Sensor Array Advanced Signal Interpreter Femtoactuators Experimental Force Booster Advanced Reaction Control System Advanced Force Field A0-MCA's Component Scanner Concept Navigation Harness > --- WEAPON ----------- Concept Miniperforator Experimental Jetlance > --- INVENTORY -------- Hybrid Graviton Reactor High-density Centrium Leg High-density Centrium Leg High-density Centrium Leg High-density Centrium Leg High-density Centrium Leg High-density Centrium Leg High-density Centrium Leg Experimental Gyrokinetic Inverter Combat Linear Gravjet 2N-1CE's Frost Array Experimental Coolant Injector Concept Chromion Battery Femtoactuators Graphene Brace Thermal Barrier Advanced Shield Generator Advanced System Restoration Module Crosscalibrator Transdimensional Reconstructor Subatomic Replicator Enhanced Nova Cannon Enhanced Hardcell Cannon Micro-nuke Launcher [Rating: 260] Favorites ----------- Power Light Fission Core Engine Ion Engine Power Core Light Fission Core Reactor Quantum Reactor Propulsion Cooled Aerolev Unit Treads Light Treads Leg High-density Centrium Leg Wheel Subdweller Monowheel Hover Unit Cooled Aerolev Unit Flight Unit Cooled Cesium-ion Thruster Utility Enhanced Optical Array Device Experimental Sensor Array Storage Large Storage Unit Processor Enhanced Optical Array Hackware Hacking Suite Protection Medium Regenerative Plating Weapon Advanced KE Penetrator Energy Gun Gamma Rifle Energy Cannon Advanced Plasma Cannon Ballistic Gun Advanced KE Penetrator Ballistic Cannon Hypervelocity Mass Driver Launcher Long-range Missile Launcher Special Weapon CPS Tube Impact Weapon Heavy Hammer Slashing Weapon Power Sword Piercing Weapon Experimental Jetlance Build | -11 -10 -10 -8 -6 -6 -6 -6 -6 -5 -5 -5 -5 -4 -4 -4 -4 -4 -3 -3 -3 -3 -2 -2 -1 ------- Run | Yrd Mat Sub Scr Fac Ext Cet Arc Hub Fac Upp Upp Zhi Pro Fac Upp Upp War Pro Res Qua Frg Res Tes Acc Slots Evolved 18 | . . . . 8 . . . . 2 . . . . 2 . . . . 2 . . 2 . 2 Power 1 | . . . . . . . . . . . . . . . . . . . 1 . . . . . Propulsion 6 | . . . . 3 . . . . . . . . . 1 . . . . 1 . . 1 . . Utility 10 | . . . . 5 . . . . 2 . . . . 1 . . . . . . . 1 . 1 Weapon 1 | . . . . . . . . . . . . . . . . . . . . . . . . 1 Parts Attached 223 | 7 8 12 2 35 4 17 3 6 25 . . 1 1 6 1 . 6 1 3 3 49 5 9 19 Power 27 | 1 1 2 . 2 1 2 . 2 5 . . 1 . 1 . . 1 . 1 . 5 . 1 1 Engine 6 | 1 1 2 . 1 . . . 1 . . . . . . . . . . . . . . . . Core 11 | . . . . 1 1 1 . . 4 . . 1 . . . . . . . . 3 . . . Reactor 10 | . . . . . . 1 . 1 1 . . . . 1 . . 1 . 1 . 2 . 1 1 Propulsion 81 | 2 . 5 2 17 1 4 . 1 8 . . . . 1 . . 3 1 1 1 19 . 2 13 Treads 7 | 2 . 1 . . . 3 . 1 . . . . . . . . . . . . . . . . Leg 6 | . . . . . . . . . . . . . . . . . . . . . . . . 6 Wheel 6 | . . 4 2 . . . . . . . . . . . . . . . . . . . . . Hover 25 | . . . . . . . . . 6 . . . . 1 . . 3 1 1 1 9 . 2 1 Flight 37 | . . . . 17 1 1 . . 2 . . . . . . . . . . . 10 . . 6 Utility 77 | 2 3 2 . 11 1 7 3 3 8 . . . 1 4 . . 1 . 1 1 15 5 5 4 Device 33 | 2 . . . 1 1 . 3 2 1 . . . . . . . 1 . 1 1 12 2 4 2 Storage 9 | . 1 1 . 2 . . . 1 1 . . . . 1 . . . . . . 2 . . . Processor 19 | . . . . 4 . 2 . . 5 . . . 1 1 . . . . . . 1 3 1 1 Hackware 4 | . . . . 2 . . . . 1 . . . . 1 . . . . . . . . . . Protection 12 | . 2 1 . 2 . 5 . . . . . . . 1 . . . . . . . . . 1 Artifact . | . . . . . . . . . . . . . . . . . . . . . . . . . Weapon 38 | 2 4 3 . 5 1 4 . . 4 . . . . . 1 . 1 . . 1 10 . 1 1 Energy Gun 1 | . . . . . . . . . . . . . . . . . . . . . 1 . . . Energy Cannon 6 | . . . . 1 . . . . 1 . . . . . . . . . . 1 2 . 1 . Ballistic Gun 7 | 2 . . . 1 . 4 . . . . . . . . . . . . . . . . . . Ballistic Cannon 8 | . 1 1 . . . . . . 3 . . . . . 1 . . . . . 2 . . . Launcher 5 | . 1 1 . 1 . . . . . . . . . . . . 1 . . . . . . 1 Special Weapon 3 | . 1 . . 2 . . . . . . . . . . . . . . . . . . . . Impact Weapon 1 | . 1 . . . . . . . . . . . . . . . . . . . . . . . Slashing Weapon 4 | . . 1 . . 1 . . . . . . . . . . . . . . . 2 . . . Piercing Weapon 3 | . . . . . . . . . . . . . . . . . . . . . 3 . . . Special Melee Weapon . | . . . . . . . . . . . . . . . . . . . . . . . . . Unidentified Prototypes 8 | . . . . 4 . 2 . . . . . 1 . . . . . . . 1 . . . . Corrupted Parts 1 | . . . . . . 1 . . . . . . . . . . . . . . . . . . System Corruption 12 | . . . . . . 12 . . . . . . . . . . . . . . . . . . Parts Lost 60 | . . 4 . . . 1 . 5 2 . . . . . . . . . . . 26 2 14 6 Power 5 | . . 1 . . . 1 . . 1 . . . . . . . . . . . 1 . 1 . Propulsion 18 | . . 3 . . . . . 1 . . . . . . . . . . . . 6 . 5 3 Utility 24 | . . . . . . . . 1 1 . . . . . . . . . . . 10 2 7 3 Weapon 13 | . . . . . . . . 3 . . . . . . . . . . . . 9 . 1 . Highest Loss Streak 13 | . . 2 . . . 1 . 2 2 . . . . . . . . . . . 13 2 8 5 To Critical Strikes . | . . . . . . . . . . . . . . . . . . . . . . . . . Average Backups 13 | . 9 21 21 7 8 9 10 13 5 9 9 9 9 12 15 15 14 14 13 14 13 15 23 13 Power . | . . 1 . . . . 1 1 . 1 1 . . . . . . 1 . . . 2 1 . Propulsion 3 | . 1 6 5 . 2 4 5 5 1 3 3 3 2 1 1 1 1 1 . . 2 5 8 3 Utility 4 | . 4 7 8 2 2 . 1 4 1 1 2 2 2 5 8 8 6 6 7 7 5 4 8 4 Weapon 2 | . 2 4 3 1 1 2 2 2 2 3 3 3 3 3 4 3 3 3 4 4 1 2 3 3 Tool/Special . | . . . . . . . . . . . . . . . . . . . . . . . . . Unused Backups 40 | . 1 1 6 5 . . . . 2 1 . 1 1 3 . 1 2 . . 1 6 . 1 8 Power 2 | . . . 1 . . . . . . 1 . . . . . . . . . . . . . . Propulsion 11 | . 1 1 . . . . . . . . . . 1 3 . . . . . . 3 . 1 1 Utility 14 | . . . . 3 . . . . 2 . . 1 . . . . 2 . . 1 2 . . 3 Weapon 9 | . . . 5 . . . . . . . . . . . . 1 . . . . . . . 3 Tool/Special 4 | . . . . 2 . . . . . . . . . . . . . . . . 1 . . 1 Average Slot Usage (%) 90 | . 100 99 77 88 83 84 87 87 96 100 100 94 100 99 100 100 99 100 90 94 79 82 76 65 Engine 2 | . 14 14 2 1 . . . 2 . . . . . . . . . . . . . . . . Core 2 | . . . . 3 6 . . . 3 5 5 5 5 5 5 5 3 . . . 3 4 4 2 Reactor 1 | . . . . . . 4 5 2 1 . . . . . . . 1 5 4 4 2 4 3 1 Treads 5 | . 28 14 4 . . 9 11 12 . . . . . . . . . . . . . . . . Wheel 3 | . . 13 14 . . . . . . . . . . . . . . . . . . . . . Hover 12 | . . . . . . . . . 16 29 29 29 29 31 31 31 30 31 33 33 21 26 24 5 Flight 5 | . . . . 32 33 7 5 3 12 . . . . . . . . . . . 6 . . 7 Device 8 | . 2 11 14 6 11 1 1 4 8 5 5 5 5 5 5 5 5 5 8 9 14 27 21 12 Storage 7 | . 12 14 14 5 6 5 5 5 2 5 5 5 5 5 5 5 5 5 4 4 5 4 4 6 Processor 16 | . . . . 13 14 20 23 17 26 35 35 35 35 31 31 31 31 31 28 28 15 10 11 9 Hackware 1 | . . . . 8 . . . . 4 . . . . 4 5 5 1 . . . . . . . Protection 5 | . 13 2 . 4 1 10 8 11 5 5 5 5 5 5 5 5 8 10 4 4 2 . . 1 Ballistic Gun 3 | . 10 . . . . 15 23 22 . . . . . . . . . . . . . . . . Ballistic Cannon 5 | . 5 15 14 . . . . . 2 10 8 . 4 5 5 7 9 4 . 1 . 1 . . Impact Weapon 1 | . 11 3 . . . . . . . . . . . . . . . . . . . . . . Slashing Weapon 4 | . . 8 14 6 5 3 . . 4 . 1 5 5 3 5 2 . 5 4 4 1 . . . Peak Build Rating 260 | 9 11 19 23 80 84 128 127 127 109 104 104 104 107 126 127 129 141 144 162 169 235 247 260 198 Average Rating 93 | 6 9 14 20 59 76 117 125 125 97 103 103 97 105 122 126 128 133 142 156 166 169 242 238 179 On Entrance 108 | . 9 11 17 23 75 76 127 127 105 104 103 103 104 107 126 127 129 141 144 157 169 235 227 167 Avg Prop Armor Cover (%) 11 | . . 12 14 . . . . . . . . . . . . . . . . . 6 . 7 5 Naked Turns . | . . . . . . . . . . . . . . . . . . . . . . . . . Heaviest Build 103 | 9 36 96 92 35 43 66 66 77 48 48 48 39 37 56 49 58 68 60 82 94 102 91 103 66 Greatest Support 192 | 40 40 40 28 36 45 160 160 190 52 56 69 52 52 83 61 61 74 79 110 99 117 126 126 192 Greatest Overweight (x) 4 | . . 4 4 . 1 1 . . 2 . . . . . . . . . . . 2 . 1 . Average Overweight (x) . | . . 3 3 . . . . . . . . . . . . . . . . . . . . . Largest Inventory Capacity 25 | 5 15 25 25 25 10 10 10 15 15 10 10 10 10 15 15 15 15 15 15 15 25 25 25 25 Average Capacity 15 | 5 13 24 25 9 10 10 10 14 7 10 10 10 10 13 15 15 15 15 15 15 15 25 25 17 Most Carried 25 | 1 15 25 25 24 10 10 10 15 14 10 10 10 10 15 15 15 15 15 15 15 15 22 25 25 Average Carried 14 | . 9 23 23 9 9 9 10 13 5 9 10 9 9 12 15 15 14 15 13 14 14 15 24 14 Final Capacity 25 | 5 15 25 25 10 10 10 10 15 10 10 10 10 10 15 15 15 15 15 15 15 25 25 25 5 Final Carried 25 | 1 15 25 25 10 10 10 10 14 10 10 10 9 10 15 15 15 15 15 14 15 12 22 20 5 Class Distribution -------------------- 33% | Scout 30% | Mutant 12% | Scavenger-Tank 4% | Scavenger-Mutant 3% | Commander-Sprinter 3% | Sprinter Dominant Class ---------------- Mutant | -10/Materials Mutant | -10/Subcaves Mutant | -8/Scraptown Scout | -6/Factory Scout | -6/Extension Scavenger-Tank | -6/Cetus Scavenger-Tank | -6/Archives Scavenger-Tank | -6/Hub_04(d) Scout | -5/Factory Scout | -5/Upper Caves Scout | -5/Upper Caves Scout | -5/Zhirov Scout | -4/Proximity Caves Scientist-Scout | -4/Factory Scout | -4/Upper Caves Scout | -4/Upper Caves Commander-Sprinter | -4/Warlord Scout | -3/Proximity Caves Scout | -3/Research Scout | -3/Quarantine Mutant | -3/Protoforge Scout | -2/Research Scout | -2/Testing Mutant | -1/Access Resources | -11 -10 -10 -8 -6 -6 -6 -6 -6 -5 -5 -5 -5 -4 -4 -4 -4 -4 -3 -3 -3 -3 -2 -2 -1 ----------- Run | Yrd Mat Sub Scr Fac Ext Cet Arc Hub Fac Upp Upp Zhi Pro Fac Upp Upp War Pro Res Qua Frg Res Tes Acc Matter Collected 10920 | 312 133 554 20 367 1096 371 234 1155 1305 471 334 39 70 220 20 130 1332 538 30 61 1304 331 216 277 Remotely . | . . . . . . . . . . . . . . . . . . . . . . . . . Salvage Created 16488 | 245 342 428 . 904 690 107 210 2433 1889 527 494 49 . 700 . 57 1884 675 233 60 2058 1400 652 451 Parts 788 | 22 28 35 . 34 19 11 21 132 99 22 17 1 . 23 . 1 70 29 9 3 120 43 26 23 Haulers Intercepted 21 | . 2 . . 3 . . . 6 2 . . . . 3 . . . 1 2 . . 2 . . Recyclers Shooed 3 | . . . . 1 1 . . . 1 . . . . . . . . . . . . . . . Parts Field Recycled . | . . . . . . . . . . . . . . . . . . . . . . . . . Retrieved Matter . | . . . . . . . . . . . . . . . . . . . . . . . . . Parts Self-Destructed 75 | . . 7 . . . . . . . 16 13 . 3 . . 10 . 26 . . . . . . Prevented 4 | . . . . . . . . . . . 1 . . . . 3 . . . . . . . . Parts Restored 7 | . . . . . . . . . . . . . . . . . . . . . 7 . . . Faulty 7 | . . . . . . . . . . . . . . . . . . . . . 7 . . . Kills | -11 -10 -10 -8 -6 -6 -6 -6 -6 -5 -5 -5 -5 -4 -4 -4 -4 -4 -3 -3 -3 -3 -2 -2 -1 ------- Run | Yrd Mat Sub Scr Fac Ext Cet Arc Hub Fac Upp Upp Zhi Pro Fac Upp Upp War Pro Res Qua Frg Res Tes Acc Combat Hostiles Destroyed 233 | . 13 15 . 3 11 . 1 25 25 14 11 . . 2 . 1 30 16 . . 40 12 7 7 Melee 40 | . . 4 . 1 4 . . . 8 . . . . . . . . . . . 10 8 3 2 Guns 22 | . 3 . . . . . 1 18 . . . . . . . . . . . . . . . . Cannons 103 | . 2 4 . . 1 . . . 11 9 5 . . 2 . 1 29 8 . . 23 4 4 . AOE 66 | . 7 7 . 2 6 . . 7 6 5 6 . . . . . 1 8 . . 6 . . 5 Classes Destroyed 28 | 3 5 2 . 4 2 . . 4 . 1 . . . . . . 3 1 . 1 2 . . . Worker 22 | 2 1 . . 1 . . . 6 9 . . . . 2 . . . . . . 1 . . . Builder 14 | . 1 . . 1 . . . 7 . . . . . 1 . . . . 1 . 2 . . 1 Tunneler 12 | 7 1 . . . . . . . 4 . . . . . . . . . . . . . . . Hauler 21 | . 2 . . 3 . . . 6 2 . . . . 3 . . . 1 2 . . 2 . . Recycler 12 | 1 . . . 3 3 . . . 2 . . . . 1 . . . . . . . 1 . 1 Mechanic 3 | . . . . 2 . . . 1 . . . . . . . . . . . . . . . . Operator 7 | . . . . 1 1 . 3 . 1 . . . . . . . . . . . . 1 . . Drone 3 | . . . . . . . . . . . . . . . . . . 2 . . 1 . . . Watcher 12 | . 1 . . 1 . 1 . . 4 . . . . 2 . . . . . . 1 1 1 . Swarmer 44 | . 9 3 . . 4 . . . 5 5 5 . . . . . 1 2 . . 5 . . 5 Saboteur 1 | . . . . 1 . . . . . . . . . . . . . . . . . . . . Grunt 69 | . 4 . . . 4 . . 15 7 3 5 . . . . 1 7 9 . . . 10 4 . Brawler 4 | . . . . . . . . . . . . . . . . . 4 . . . . . . . Protector 6 | . . . . . . . . . . . . . . . . . 6 . . . . . . . Researcher 6 | . . . . . . . . . . . . . . . . . . . . 1 3 . 2 . Sentry 16 | . . . . . 1 . 1 1 2 1 1 . . . . . . 1 . . 4 2 . 2 Demolisher 4 | . . . . . . . . 1 . . . . . . . . 3 . . . . . . . Specialist 4 | . . . . . . . . 1 . . . . . . . . . . . . 3 . . . Hunter 23 | . . . . . . . . 3 3 . . . . . . . 3 2 . . 11 . 1 . Programmer 30 | . . . . 2 1 . . 3 8 3 . . . 2 . . 3 . . . 6 . 2 . Heavy 1 | . . . . . . . . 1 . . . . . . . . . . . . . . . . Behemoth 2 | . . . . . 1 . . . . . . . . . . . 1 . . . . . . . Enhanced Demolisher 1 | . . . . . . . . . . . . . . . . . 1 . . . . . . . Hotshot 2 | . . . . . . . . . . . . . . . . . . . . . 2 . . . Decapitator 6 | . . . . . . . . . . . . . . . . . . . . . 6 . . . Immortal 2 | . . . . . . . . . . . . . . . . . . . . . 2 . . . Striker 1 | . . . . . . . . . . . . . . . . . 1 . . . . . . . Artisan 1 | . . 1 . . . . . . . . . . . . . . . . . . . . . . Subdweller 12 | . . 12 . . . . . . . . . . . . . . . . . . . . . . Packrat 1 | . . . . . . . . . . . 1 . . . . . . . . . . . . . Thug 1 | . . . . . . . . . . 1 . . . . . . . . . . . . . . Marauder 1 | . . . . . . . . . . . . . . . . . 1 . . . . . . . Mutant 1 | . . . . . . . . . . 1 . . . . . . . . . . . . . . Best Kill Streak 14 | 4 6 4 . 5 4 1 1 10 8 5 4 . . 5 . 1 14 8 2 1 10 6 4 8 Combat Bots Only 14 | . 6 4 . 3 4 . 1 5 5 5 4 . . 2 . 1 14 8 . . 9 4 3 6 Max Kills in Single Turn 5 | 1 4 2 . 2 3 1 1 5 5 4 3 . . 1 . 1 2 2 1 1 4 1 1 5 Gunslinging . | . . . . . . . . . . . . . . . . . . . . . . . . . Exploded 5 | . 4 2 . 1 3 . . 2 4 4 3 . . . . . 1 1 . . 4 . . 5 Melee 1 | . . 1 . 1 1 . . . 1 . . . . . . . . . . . 1 1 1 1 Uniques/NPCs Destroyed 1 | . . . . . . 1 . . . . . . . . . . . . . . . . . . A7 (-6/Cetus) Combat | -11 -10 -10 -8 -6 -6 -6 -6 -6 -5 -5 -5 -5 -4 -4 -4 -4 -4 -3 -3 -3 -3 -2 -2 -1 -------- Run | Yrd Mat Sub Scr Fac Ext Cet Arc Hub Fac Upp Upp Zhi Pro Fac Upp Upp War Pro Res Qua Frg Res Tes Acc Hostile Shots Fired 1482 | . 49 74 . 17 21 17 3 141 81 24 12 . . 2 . 2 13 28 6 9 516 41 269 157 Missed 657 | . 13 31 . 9 11 8 . 41 31 9 6 . . 1 . . 6 13 1 5 247 26 138 61 Deflected 1 | . . . . . . . . . . . . . . . . . . . . . 1 . . . Hits 825 | . 36 43 . 8 10 9 3 100 50 15 6 . . 1 . 2 7 15 5 4 269 15 131 96 Melee 12 | . . . . . . . . . . . . . . . . . . . . . 10 . 2 . Projectile 813 | . 36 43 . 8 10 9 3 100 50 15 6 . . 1 . 2 7 15 5 4 259 15 129 96 AOE 21 | . . . . . . . . 1 . . . . . . . . . . . . 20 . . . Critical Strikes 47 | . 2 . . . 1 2 . 6 3 1 . . . . . . . 1 1 . 18 1 10 1 Actively Blocked 16 | . . . . . . . . . 1 . . . . . . . . . . . 14 . . 1 Part Disruptions 5 | . . . . . . . . 1 . . . . . . . . 1 . . . 1 . 2 . Damage Taken 17277 | . 335 874 . 92 114 218 75 2209 1110 311 96 . . 19 . 44 188 304 70 35 6449 369 2640 1725 Core 2439 | . 39 196 . 33 54 . . 130 221 103 . . . . . . 12 . 15 . 945 78 455 158 Absorbed by Shields 2869 | . . . . . 30 61 . . . . . . . . . . 109 . 73 37 1538 . 1021 . Reduced by Siege Mode 10 | . . . . . . . . 10 . . . . . . . . . . . . . . . . Redirected to Shielding 151 | . . . . . . . . . . . . . . . . . . 51 . . 100 . . . Regen/Repaired (Parts) 1659 | . . . . . . 37 190 94 714 124 14 . . . . 21 27 68 30 53 287 . . . Core Remaining (%) 64 | 100 . . 6 . . . . 74 . . . . 67 . . . . 98 . . 23 . 63 83 Volleys Fired 583 | 21 24 22 . 4 17 3 10 80 87 26 15 . 1 9 . 8 71 47 . 6 105 7 18 2 Largest 4 | 2 2 2 . 1 1 3 4 4 2 2 2 . 1 2 . 2 2 1 . 1 1 1 1 1 Hottest 260 | 40 100 60 . 43 90 105 140 140 107 107 107 . 43 107 . 112 260 56 . 113 113 50 200 200 Shots Fired 969 | 42 37 31 . 4 17 11 38 273 92 49 26 . 1 13 . 15 138 47 . 6 101 7 19 2 Gun 392 | 42 26 . . . . 11 38 267 . . . . . . . . . . . . 8 . . . Cannon 511 | . 4 22 . . 4 . . . 91 47 23 . . 13 . 15 134 35 . 6 90 7 19 1 Launcher 62 | . 4 9 . 4 12 . . 6 1 2 3 . 1 . . . 4 12 . . 3 . . 1 Special 4 | . 3 . . . 1 . . . . . . . . . . . . . . . . . . . Kinetic 811 | 42 30 22 . . . 11 38 267 77 47 23 . . 10 . 15 134 35 . 2 35 7 16 . Thermal 40 | . 3 . . . 4 . . . 14 . . . . 3 . . 1 . . 4 7 . 3 1 Explosive 61 | . 4 9 . 4 12 . . 6 1 2 3 . 1 . . . 3 12 . . 3 . . 1 Electromagnetic 8 | . . . . . . . . . . . . . . . . . . . . . 8 . . . Entropic 48 | . . . . . . . . . . . . . . . . . . . . . 48 . . . Robot Hit Streak 22 | 14 12 12 . 11 13 2 5 13 4 12 8 . . 2 . 7 22 19 . 1 13 11 5 . Robot Miss Streak 6 | 3 5 1 . . 1 1 4 6 5 2 1 . . 2 . 4 3 1 . 1 3 2 5 . Penetration Max 3 | . . . . . . 1 1 1 1 1 1 . . . . . 1 1 . . 1 1 3 . Secondary Targets 3 | . . . . . . . . 3 . . . . . . . . . . . . . . . . Max Gunslinging Chain 1 | . . . . . . . . 1 . . . . . . . . . . . . . . . . Shots Hit Robots 823 | 30 31 37 . 29 26 30 26 157 69 27 17 1 . 18 . 9 104 18 3 5 100 37 38 11 Core Hits 526 | 18 20 21 . 18 23 8 10 79 44 19 16 1 . 12 . 3 48 39 3 1 70 28 33 12 Critical Kills 97 | . 1 . . . . . . 12 15 8 4 . . 4 . 1 29 8 . . 7 4 4 . Critical Parts Destroyed 140 | . 3 . . . . 1 2 22 15 11 3 . . . . 1 46 8 . 1 3 6 18 . Critical Strikes 348 | . 4 . . 3 2 2 2 34 37 19 7 . . 7 . 2 91 16 . 2 51 23 42 4 Destroy 259 | . . . . . . 1 2 34 32 19 7 . . 4 . 2 91 16 . 1 11 10 29 . Smash 4 | . 4 . . . . . . . . . . . . . . . . . . . . . . . Sever 15 | . . . . 3 2 1 . . 5 . . . . 3 . . . . . 1 . . . . Impale 49 | . . . . . . . . . . . . . . . . . . . . . 19 13 13 4 Sunder 21 | . . . . . . . . . . . . . . . . . . . . . 21 . . . Melee Attacks 524 | . 24 48 . 69 21 25 . 1 74 3 4 1 2 24 1 1 29 17 6 12 60 44 40 18 Impact 38 | . 24 14 . . . . . . . . . . . . . . . . . . . . . . Slashing 337 | . . 34 . 69 21 25 . 1 74 3 4 1 2 24 1 1 29 17 6 12 13 . . . Piercing 149 | . . . . . . . . . . . . . . . . . . . . . 47 44 40 18 Sneak Attacks 88 | . 5 1 . 10 8 23 . . 8 . 1 . . 6 . . . 1 3 2 8 6 3 3 Combat Hostiles 8 | . . . . . 5 . . . . . . . . . . . . . . . 1 2 . . Follow-up Attacks 1 | . . . . . . . . . . . . . . . . . . . . . 1 . . . Damage Inflicted 42777 | 240 1120 1603 . 2138 2479 1708 782 6395 3914 946 803 77 . 953 . 81 2464 1732 236 342 8735 2555 2321 1153 Guns 6684 | 240 139 . . . . 287 782 5072 . . . . . . . . . . . . 164 . . . Cannons 10980 | . 54 314 . . 106 . . . 900 576 284 . . 89 . 81 2304 335 . 15 5400 107 415 . Explosions 8590 | . 276 805 . 521 1156 . . 1323 943 370 451 . . . . . 160 1299 . . 619 . 212 455 Melee 16523 | . 651 484 . 1617 1217 1421 . . 2071 . 68 77 . 864 . . . 98 236 327 2552 2448 1694 698 Ramming . | . . . . . . . . . . . . . . . . . . . . . . . . . Kinetic 13040 | 240 193 314 . . . 287 782 5072 869 576 284 . . 89 . 81 2304 335 . 15 1263 107 229 . Thermal 1215 | . . . . . 106 . . . 661 . . . . . . . . . . . 50 . 398 . Explosive 7748 | . 276 805 . 521 1156 . . 1323 313 370 451 . . . . . 160 1299 . . 619 . . 455 Electromagnetic 164 | . . . . . . . . . . . . . . . . . . . . . 164 . . . Impact 700 | . 651 49 . . . . . . . . . . . . . . . . . . . . . . Slashing 8721 | . . 435 . 1617 1217 1421 . . 2071 . 68 77 . 864 . . . 98 236 327 290 . . . Piercing 7102 | . . . . . . . . . . . . . . . . . . . . . 2262 2448 1694 698 Entropic 4087 | . . . . . . . . . . . . . . . . . . . . . 4087 . . . Highest Corruption 23 | . 1 1 . 1 2 14 14 11 2 4 4 4 4 3 3 3 3 1 . . 23 . 15 . Average Corruption 3 | . 1 1 . 1 1 8 7 1 1 3 4 4 4 1 3 3 1 1 . . 9 . 5 . Corruption Purged 14 | . . . . . . . 14 . . . . . . . . . . . . . . . . . Corruption Blocked . | . . . . . . . . . . . . . . . . . . . . . . . . . Effects 178 | . 2 12 . 2 9 24 13 6 14 14 8 2 3 3 4 2 4 2 . . 47 . 7 . Message Errors 37 | . 1 4 . . 2 6 3 2 3 3 1 . 1 . 2 . . . . . 7 . 2 . Matter Fused 44 | . 1 3 . 1 2 2 3 . 2 3 4 1 2 . . . 2 1 . . 16 . 1 . Heat Flow Errors 18 | . . 1 . . 1 6 . . 1 4 . . . . . . 1 . . . 3 . 1 . Energy Discharges 28 | . . 2 . 1 2 6 1 1 2 1 . 1 . 3 . . . . . . 7 . 1 . Parts Rejected 1 | . . . . . . . . . . . . . . . . . . . . . 1 . . . Data Loss (minor) 17 | . . 1 . . 2 . 2 . 1 1 1 . . . 2 1 1 . . . 4 . 1 . Data Loss (major) 8 | . . . . . . . 2 1 1 . 1 . . . . 1 . 1 . . 1 . . . Misfires 6 | . . . . . . 3 . . 2 . . . . . . . . . . . . . 1 . Alerts 6 | . . 1 . . . . . . 2 1 . . . . . . . . . . 2 . . . Misdirections 2 | . . . . . . . . . . . . . . . . . . . . . 2 . . . Weapon Failures 11 | . . . . . . 1 2 2 . 1 1 . . . . . . . . . 4 . . . Overload Shots . | . . . . . . . . . . . . . . . . . . . . . . . . . Overflow Damage 3897 | . 262 21 . 249 163 119 . 30 550 . 79 . . 173 . . . 33 . 55 933 367 597 266 Projectiles 460 | . . . . . . . . . 6 . . . . . . . . . . . 454 . . . Explosions 429 | . . 12 . . 11 . . 30 228 . 21 . . . . . . 33 . . 14 . 58 22 Melee 3008 | . 262 9 . 249 152 119 . . 316 . 58 . . 173 . . . . . 55 465 367 539 244 Knockbacks 48 | . 1 3 . . . . . . 1 2 . . . . . 2 8 . . . 12 1 18 . Impact 2 | . 1 1 . . . . . . . . . . . . . . . . . . . . . . Kinetic 41 | . . 2 . . . . . . 1 2 . . . . . 2 7 . . . 12 1 14 . Secondary 5 | . . . . . . . . . . . . . . . . . 1 . . . . . 4 . Self-Inflicted Damage 304 | . 9 50 . . . . . . 112 . . . . . . . . . . . 47 . 86 . Shots 6 | . 1 2 . . . . . . 1 . . . . . . . . . . . 1 . 1 . Rammed . | . . . . . . . . . . . . . . . . . . . . . . . . . Targets Rammed . | . . . . . . . . . . . . . . . . . . . . . . . . . Kicked . | . . . . . . . . . . . . . . . . . . . . . . . . . Crushed . | . . . . . . . . . . . . . . . . . . . . . . . . . Highest Temperature 366 | . 60 153 . 30 228 240 223 202 260 306 161 . . 86 . 207 204 66 323 . 221 17 366 . Average Temperature 42 | . 16 83 . 3 43 84 84 45 20 84 65 . . 37 . 96 92 21 33 . 60 5 41 . Received Heat Transfer 1925 | . 78 177 . . 33 . 9 322 36 18 . . . . . 12 4 9 192 . 502 60 392 81 Effects 3 | . . . . . . . . . . 3 . . . . . . . . . . . . . . Interference 3 | . . . . . . . . . . 3 . . . . . . . . . . . . . . Siege Activations 2 | . . . . . . . . 2 . . . . . . . . . . . . . . . . Total Turns 16 | . . . . . . . . 16 . . . . . . . . . . . . . . . . Longest Duration 10 | . . . . . . . . 10 . . . . . . . . . . . . . . . . Martial Activations . | . . . . . . . . . . . . . . . . . . . . . . . . . Shielding Activations . | . . . . . . . . . . . . . . . . . . . . . . . . . Robots Disrupted . | . . . . . . . . . . . . . . . . . . . . . . . . . Combat Hostiles . | . . . . . . . . . . . . . . . . . . . . . . . . . Robots Corrupted 5 | . 3 1 . . . . . . . . . . . . . . . . . . 1 . . . Combat Hostiles 2 | . 1 . . . . . . . . . . . . . . . . . . . 1 . . . Parts Fried 4 | . . 1 . . . . . . . . . . . . . . 2 . . . 1 . . . Impact Corruptions 9 | . 8 1 . . . . . . . . . . . . . . . . . . . . . . Robots Melted . | . . . . . . . . . . . . . . . . . . . . . . . . . Combat Hostiles . | . . . . . . . . . . . . . . . . . . . . . . . . . Parts Melted 2 | . . . . . 1 . . . . . . . . . . . 1 . . . . . . . Heat Transferred 739 | . . . . . 150 . . . 500 . . . . . . . . . . . 37 . 52 . Parts Sabotaged 2 | . . . . . . . . . . . . . . . . . . . . . 2 . . . Parts Stolen . | . . . . . . . . . . . . . . . . . . . . . . . . . Parts Stripped . | . . . . . . . . . . . . . . . . . . . . . . . . . Power Chain Reactions . | . . . . . . . . . . . . . . . . . . . . . . . . . Alert | -11 -10 -10 -8 -6 -6 -6 -6 -6 -5 -5 -5 -5 -4 -4 -4 -4 -4 -3 -3 -3 -3 -2 -2 -1 ------- Run | Yrd Mat Sub Scr Fac Ext Cet Arc Hub Fac Upp Upp Zhi Pro Fac Upp Upp War Pro Res Qua Frg Res Tes Acc Maximum Alert Level 5 | . 1 . . . 2 1 . 5 5 . . . . 1 . . . . . . 4 3 2 2 Low Security (%) 44 | 100 94 . . 100 58 18 100 14 . . . . . 84 . . . . 100 100 6 . . . Level 1 13 | . 5 . . . 22 81 . 4 . . . . . 15 . . . . . . 9 . 15 70 Level 2 6 | . . . . . 19 . . 9 . . . . . . . . . . . . 1 4 84 29 Level 3 12 | . . . . . . . . 6 18 . . . . . . . . . . . 38 95 . . Level 4 17 | . . . . . . . . 3 79 . . . . . . . . . . . 42 . . . Level 5 6 | . . . . . . . . 61 2 . . . . . . . . . . . . . . . High Security . | . . . . . . . . . . . . . . . . . . . . . . . . . Max Security . | . . . . . . . . . . . . . . . . . . . . . . . . . Peak Influence 2184 | 20 242 . . 182 502 366 157 2184 1896 . . . . 218 . . . . 99 70 1383 784 532 485 Initial 1058 | . . . . . 66 266 59 . 1058 . . . . 150 . . . . 93 43 19 777 402 254 Average 557 | 2 51 . . 31 215 263 50 1338 1301 . . . . 94 . . . . 89 29 963 722 450 377 Influence Increases 12885 | 50 448 135 . 504 818 346 253 2766 1566 318 458 . 30 376 . 35 1070 395 25 153 2145 307 303 384 Destroy 0b10 Robot/C 5360 | . 260 60 . 140 400 160 80 980 520 260 220 . . 40 . 20 660 280 . 20 840 180 100 140 Destroy 0b10 Robot/NC 625 | 50 30 . . 60 35 10 20 135 110 . . . . 45 . . 30 15 15 . 30 25 5 10 Destroy Leader 762 | . 66 . . 48 44 . . 228 112 40 20 . . 20 . . . 10 4 . 92 36 12 30 Allied During Kill 1720 | . . . . 8 216 170 100 939 16 18 38 . . . . . 215 . . . . . . . Trap Triggered on 0b10 10 | . . . . 10 . . . . . . . . . . . . . . . . . . . . Successful Hack 357 | . 12 . . 66 46 . . 10 101 . . . . 35 . . . . . 12 . 21 . 54 Select Force Hacks 50 | . . . . . . . . 50 . . . . . . . . . . . . . . . . Disable Machine 1020 | . . . . 45 . . 45 270 270 . . . . 60 . . . . . 60 165 . 75 30 Anti-Garrison Action 150 | . . . . . . . . . . . . . . . . . . . . . 150 . . . Destroy Structure 941 | . 35 . . 37 62 6 8 139 212 . . . . 26 . . . . 6 16 208 45 66 75 Advance Influence 150 | . . . . . . . . . . . . . . 150 . . . . . . . . . . Partial Spotted 255 | . . . . 45 15 . . . 45 . . . . . . . . . . . 60 . 45 45 Lose Combat Pursuer 1485 | . 45 75 . 45 . . . 15 180 . 180 . 30 . . 15 165 90 . 45 600 . . . Influence Decreases 12437 | 50 385 198 . 367 479 674 401 605 1835 1035 462 1171 30 376 . 35 298 1028 86 196 797 974 594 361 Entered New Map 5560 | . . 31 . . 71 210 89 . 1103 701 224 1171 . . . . . 772 46 35 16 606 314 171 Time Decay 5080 | 50 209 140 . 283 368 334 212 394 522 334 238 . 30 226 . 35 278 256 40 161 502 198 140 130 Lost Part 587 | . . 27 . . . 10 . 50 20 . . . . . . . . . . . 260 20 140 60 Lost Ally 565 | . . . . 84 40 120 100 161 40 . . . . . . . 20 . . . . . . . Purge Threat 645 | . 176 . . . . . . . 150 . . . . 150 . . . . . . 19 150 . . Squads Dispatched 67 | . 3 . . 8 1 . . 16 8 . . . . 3 . . . . . 4 11 5 6 2 Investigation 9 | . . . . 1 . . . 3 2 . . . . 2 . . . . . 1 . . . . Extermination 20 | . . . . 3 . . . 2 4 . . . . 1 . . . . . 2 3 2 2 1 Reinforcement 24 | . 3 . . 4 1 . . 5 1 . . . . . . . . . . 1 3 3 2 1 Assault 10 | . . . . . . . . 4 1 . . . . . . . . . . . 5 . . . Garrison 4 | . . . . . . . . 2 . . . . . . . . . . . . . . 2 . Intercept . | . . . . . . . . . . . . . . . . . . . . . . . . . Searches Triggered . | . . . . . . . . . . . . . . . . . . . . . . . . . Unchained Authorized 2 | . . . . . . . . . . . . . . . . . . . . . . 1 1 . Construction Impeded 3 | . . . . 1 . . . 1 . . . . . . . . . . . . 1 . . . Haulers Reinforced 7 | . . . . 1 . . . 3 . . . . . . . . . . . . . 3 . . Active Scanning Responses . | . . . . . . . . . . . . . . . . . . . . . . . . . Cargo Convoy Interrupts 2 | . . . . 1 . . . . . . . . . . . . . . . . . 1 . . Stealth | -11 -10 -10 -8 -6 -6 -6 -6 -6 -5 -5 -5 -5 -4 -4 -4 -4 -4 -3 -3 -3 -3 -2 -2 -1 --------- Run | Yrd Mat Sub Scr Fac Ext Cet Arc Hub Fac Upp Upp Zhi Pro Fac Upp Upp War Pro Res Qua Frg Res Tes Acc Distress Signals 25 | . 2 . . 3 3 1 . 5 2 1 . . . 1 . . . 1 . . . . 2 4 Communications Jammed . | . . . . . . . . . . . . . . . . . . . . . . . . . Distress Signals . | . . . . . . . . . . . . . . . . . . . . . . . . . Times Spotted 684 | . 23 20 . 22 18 10 4 48 42 7 24 . 3 4 . 3 113 16 2 11 129 29 106 50 Peak Tracking Total 44 | . 6 6 . 7 3 5 1 6 7 3 13 . 2 3 . 1 20 6 2 6 17 11 44 8 Tactical Retreats 44 | . 1 2 . 3 . . . 1 8 . 2 . 1 . . 1 7 4 . 1 13 . . . Traps | -11 -10 -10 -8 -6 -6 -6 -6 -6 -5 -5 -5 -5 -4 -4 -4 -4 -4 -3 -3 -3 -3 -2 -2 -1 ------- Run | Yrd Mat Sub Scr Fac Ext Cet Arc Hub Fac Upp Upp Zhi Pro Fac Upp Upp War Pro Res Qua Frg Res Tes Acc Traps Triggered 23 | . 1 1 . . 2 . . . 3 . . . . 4 . . . . . 1 10 1 . . Indirectly . | . . . . . . . . . . . . . . . . . . . . . . . . . Trap Hack Attempts . | . . . . . . . . . . . . . . . . . . . . . . . . . Triggered . | . . . . . . . . . . . . . . . . . . . . . . . . . Disarmed . | . . . . . . . . . . . . . . . . . . . . . . . . . Reprogrammed . | . . . . . . . . . . . . . . . . . . . . . . . . . Reused 1 | . . . . 1 . . . . . . . . . . . . . . . . . . . . Traps Extracted . | . . . . . . . . . . . . . . . . . . . . . . . . . Installed 1 | . . . . 1 . . . . . . . . . . . . . . . . . . . . Triggered 1 | . . . . 1 . . . . . . . . . . . . . . . . . . . . Most Traps Carried 1 | . . . 1 1 . . . . . . . . . . . . . . . . . . . . Machines | -11 -10 -10 -8 -6 -6 -6 -6 -6 -5 -5 -5 -5 -4 -4 -4 -4 -4 -3 -3 -3 -3 -2 -2 -1 ---------- Run | Yrd Mat Sub Scr Fac Ext Cet Arc Hub Fac Upp Upp Zhi Pro Fac Upp Upp War Pro Res Qua Frg Res Tes Acc Machines Disabled 85 | . . 1 . 3 1 . 3 18 18 1 . . 1 4 . . 2 3 . 4 18 . 6 2 Max in Single Turn 14 | . . 1 . 1 . . 1 1 14 1 . . 1 1 . . 1 2 . 1 1 . 2 1 Garrison Access 4 | . . . . . . . . . 2 . . . . . . . . . . . 1 . 1 . Network Hub 1 | . . . . . . . . 1 . . . . . . . . . . . . . . . . Energy Cycler 1 | . . . . . . . . . . . . . . . . . . . . . . . . 1 Machines Repaired . | . . . . . . . . . . . . . . . . . . . . . . . . . Machines Dismantled . | . . . . . . . . . . . . . . . . . . . . . . . . . Machines Sabotaged 1 | . . . . . . . . 1 . . . . . . . . . . . . . . . . Overloaded Fab Kills . | . . . . . . . . . . . . . . . . . . . . . . . . . Hacking | -11 -10 -10 -8 -6 -6 -6 -6 -6 -5 -5 -5 -5 -4 -4 -4 -4 -4 -3 -3 -3 -3 -2 -2 -1 --------- Run | Yrd Mat Sub Scr Fac Ext Cet Arc Hub Fac Upp Upp Zhi Pro Fac Upp Upp War Pro Res Qua Frg Res Tes Acc Machines Accessed 111 | . 5 2 3 15 15 1 . 8 17 1 3 4 . 12 1 . 2 . . 5 2 8 4 3 Terminals 65 | . 5 . . 10 15 1 . 7 7 1 1 . . 4 . . . . . 3 1 5 2 3 Fabricators 9 | . . . . 3 . . . . 2 . . . . 3 . . . . . . . 1 . . Repair Stations 1 | . . . . . . . . . 1 . . . . . . . . . . . . . . . Recycling Units 7 | . . . . 1 . . . . 2 . . . . 3 . . . . . . . 1 . . Scanalyzers 8 | . . . . . . . . . 3 . . . . 1 . . . . . 1 1 1 1 . Garrison Access 7 | . . . . 1 . . . 1 2 . . . . 1 . . . . . 1 . . 1 . Total Hacks 285 | . 15 5 10 44 19 1 . 20 50 5 10 17 . 34 1 . 6 . . 9 10 14 7 8 Successful 168 | . 9 5 10 19 10 1 . 5 32 5 10 17 . 21 1 . 6 . . 2 5 7 1 2 Failed 117 | . 6 . . 25 9 . . 15 18 . . . . 13 . . . . . 7 5 7 6 6 Catastrophic 31 | . 2 . . 7 2 . . 1 1 . . . . 3 . . . . . 3 2 5 3 2 Database Lockouts . | . . . . . . . . . . . . . . . . . . . . . . . . . Manual 95 | . 11 . . 22 2 1 . 12 19 . . . . 14 . . . . . 1 4 5 2 2 Terminals 175 | . 15 . . 37 19 1 . 17 27 5 8 . . 17 . . . . . 4 4 11 2 8 Fabricators 16 | . . . . 4 . . . . 4 . . . . 7 . . . . . . . 1 . . Repair Stations 3 | . . . . . . . . . 3 . . . . . . . . . . . . . . . Recycling Units 9 | . . . . 2 . . . . 2 . . . . 4 . . . . . . . 1 . . Scanalyzers 28 | . . . . . . . . . 12 . . . . 4 . . . . . 4 6 1 1 . Garrison Access 13 | . . . . 1 . . . 3 2 . . . . 2 . . . . . 1 . . 4 . Terminal Hacks 96 | . 4 5 10 8 9 1 . 2 6 5 10 17 . 6 1 . 6 . . . 1 3 . 2 Record 25 | . . 4 3 . . . . . . 5 8 5 . . . . . . . . . . . . Part Schematic 4 | . . . . . . . . . . . . 4 . . . . . . . . . . . . Robot Analysis 10 | . . . 6 . . . . . . . . 4 . . . . . . . . . . . . Prototype ID Bank 13 | . . . . 2 . . . . 1 . . 4 . 1 . . 5 . . . . . . . Open Door 15 | . . . . 1 9 1 . . . . 2 . . . 1 . 1 . . . . . . . Branch Access Points 5 | . . . . 1 . . . . 1 . . . . 1 . . . . . . . 1 . 1 Emergency Access Points 1 | . . . . 1 . . . . . . . . . . . . . . . . . . . . Terminal Index 2 | . 1 . . 1 . . . . . . . . . . . . . . . . . . . . Fabricator Index 1 | . . . . 1 . . . . . . . . . . . . . . . . . . . . Alert Level 1 | . . . . . . . . . . . . . . . . . . . . . . 1 . . Unreport Threat 6 | . 2 . . . . . . . 1 . . . . 1 . . . . . . 1 1 . . Locate Traps 4 | . 1 . . . . . . 1 1 . . . . 1 . . . . . . . . . . Hauler Manifests 4 | . . . . 1 . . . 1 1 . . . . 1 . . . . . . . . . . Registered Components 1 | . . . . . . . . . . . . . . 1 . . . . . . . . . . Registered Prototypes 2 | . . . . . . . . . 1 . . . . . . . . . . . . . . 1 Proto ID Catalog 2 | . . 1 1 . . . . . . . . . . . . . . . . . . . . . Fabricator Hacks 5 | . . . . 1 . . . . 1 . . . . 2 . . . . . . . 1 . . Network Status 4 | . . . . 1 . . . . 1 . . . . 1 . . . . . . . 1 . . Build 1 | . . . . . . . . . . . . . . 1 . . . . . . . . . . Repair Station Hacks 2 | . . . . . . . . . 2 . . . . . . . . . . . . . . . Scan Component 1 | . . . . . . . . . 1 . . . . . . . . . . . . . . . Repair 1 | . . . . . . . . . 1 . . . . . . . . . . . . . . . Recycling Unit Hacks 5 | . . . . . . . . . 2 . . . . 2 . . . . . . . 1 . . Process 1 | . . . . . . . . . . . . . . 1 . . . . . . . . . . Retrieve Components 4 | . . . . . . . . . 2 . . . . 1 . . . . . . . 1 . . Scanalyzer 19 | . . . . . . . . . 9 . . . . 3 . . . . . 2 4 1 . . Insert Component 8 | . . . . . . . . . 3 . . . . . . . . . . 1 3 1 . . Analyze 3 | . . . . . . . . . 3 . . . . . . . . . . . . . . . Retrieve Study 8 | . . . . . . . . . 3 . . . . 3 . . . . . 1 1 . . . Garrison Access Hacks 3 | . . . . . . . . . 2 . . . . . . . . . . . . . 1 . Seal Access 3 | . . . . . . . . . 2 . . . . . . . . . . . . . 1 . Unauthorized Hacks 38 | . 5 . . 10 1 . . 3 10 . . . . 8 . . . . . . . 1 . . Terminals 30 | . 5 . . 8 1 . . 3 8 . . . . 4 . . . . . . . 1 . . Track 1 | . . . . . . . . . 1 . . . . . . . . . . . . . . . Assimilate 1 | . . . . 1 . . . . . . . . . . . . . . . . . . . . Botnet 8 | . 1 . . 2 1 . . 1 1 . . . . 1 . . . . . . . 1 . . Operators 3 | . . . . 1 . . . . 1 . . . . 1 . . . . . . . . . . Skim 15 | . 4 . . 4 . . . . 5 . . . . 2 . . . . . . . . . . Sabotage 2 | . . . . . . . . 2 . . . . . . . . . . . . . . . . Fabricators 6 | . . . . 2 . . . . 2 . . . . 2 . . . . . . . . . . Prioritize 1 | . . . . . . . . . . . . . . 1 . . . . . . . . . . Liberate 2 | . . . . 1 . . . . 1 . . . . . . . . . . . . . . . Haulers 3 | . . . . 1 . . . . 1 . . . . 1 . . . . . . . . . . Repair Stations . | . . . . . . . . . . . . . . . . . . . . . . . . . Recycling Units 2 | . . . . . . . . . . . . . . 2 . . . . . . . . . . Fedlink 2 | . . . . . . . . . . . . . . 2 . . . . . . . . . . Scanalyzers . | . . . . . . . . . . . . . . . . . . . . . . . . . Garrison Access . | . . . . . . . . . . . . . . . . . . . . . . . . . Data Cores Recovered 3 | . . . . . 1 . . . 1 . . . . . . . . . . . . 1 . . Used 1 | . . . . . . . . . 1 . . . . . . . . . . . . . . . Hacking Detections 73 | . 5 . . 14 10 . . 6 10 1 1 . . 7 . . . . . 5 2 6 3 3 Full Trace Events 6 | . 1 . . 1 . . . 1 2 1 . . . . . . . . . . . . . . Feedback Events 1 | . . . . . . . . . 1 . . . . . . . . . . . . . . . Corruption 1 | . . . . . . . . . 1 . . . . . . . . . . . . . . . Feedback Blocked . | . . . . . . . . . . . . . . . . . . . . . . . . . Robot Schematics Acquired 3 | . . . . . . . . . . . . . . . . . . . . . 1 . 2 . Robots Built . | . . . . . . . . . . . . . . . . . . . . . . . . . Authchips . | . . . . . . . . . . . . . . . . . . . . . . . . . Time . | . . . . . . . . . . . . . . . . . . . . . . . . . Total Robot Build Rating . | . . . . . . . . . . . . . . . . . . . . . . . . . Part Schematics Acquired 22 | . . . . . . . . . 2 . . 4 . . . . . . . 4 8 . 4 . Parts Built 2 | . . . . . . . . . . . . . . 2 . . . . . . . . . . Authchips . | . . . . . . . . . . . . . . . . . . . . . . . . . Time 139 | . . . . . . . . . . . . . . 139 . . . . . . . . . . Total Part Build Rating 18 | . . . . . . . . . . . . . . 18 . . . . . . . . . . Part Studies Acquired 8 | . . . . . . . . . 3 . . . . 3 . . . . . 1 1 . . . Parts Repaired 1 | . . . . . . . . . 1 . . . . . . . . . . . . . . . Time 62 | . . . . . . . . . 62 . . . . . . . . . . . . . . . Parts Recycled . | . . . . . . . . . . . . . . . . . . . . . . . . . Recycled Matter . | . . . . . . . . . . . . . . . . . . . . . . . . . Retrieved Matter . | . . . . . . . . . . . . . . . . . . . . . . . . . Retrieved Components 4 | . . . . . . . . . 4 . . . . . . . . . . . . . . . Parts Scanalyzed 4 | . . . . . . . . . 3 . . . . . . . . . . . 1 . . . Part Schematics Acquired 2 | . . . . . . . . . 2 . . . . . . . . . . . . . . . Parts Damaged . | . . . . . . . . . . . . . . . . . . . . . . . . . Bothacking | -11 -10 -10 -8 -6 -6 -6 -6 -6 -5 -5 -5 -5 -4 -4 -4 -4 -4 -3 -3 -3 -3 -2 -2 -1 ------------ Run | Yrd Mat Sub Scr Fac Ext Cet Arc Hub Fac Upp Upp Zhi Pro Fac Upp Upp War Pro Res Qua Frg Res Tes Acc Used RIF Installer . | . . . . . . . . . . . . . . . . . . . . . . . . . Robots Hacked . | . . . . . . . . . . . . . . . . . . . . . . . . . Non-combat . | . . . . . . . . . . . . . . . . . . . . . . . . . Combat . | . . . . . . . . . . . . . . . . . . . . . . . . . Robot Hacks Applied . | . . . . . . . . . . . . . . . . . . . . . . . . . Relay Couplers Released 3 | . . . . . . . . . . . . . . . . . . . . . 3 . . . Machine Destruction 3 | . . . . . . . . . . . . . . . . . . . . . 3 . . . Fabnet Peak Effective % . | . . . . . . . . . . . . . . . . . . . . . . . . . Robots Rewired 14 | . . . . 1 5 . . . . 3 . . . . . . 5 . . . . . . . Allies Hacked 1 | . . . . . . . . . . . . . 1 . . . . . . . . . . . Hacks Repelled . | . . . . . . . . . . . . . . . . . . . . . . . . . Allies | -11 -10 -10 -8 -6 -6 -6 -6 -6 -5 -5 -5 -5 -4 -4 -4 -4 -4 -3 -3 -3 -3 -2 -2 -1 -------- Run | Yrd Mat Sub Scr Fac Ext Cet Arc Hub Fac Upp Upp Zhi Pro Fac Upp Upp War Pro Res Qua Frg Res Tes Acc Total Allies 45 | . . . . 5 19 10 . . 3 3 . . . . . . 5 . . . . . . . Largest Group 21 | . . . . 3 16 21 17 13 3 3 3 3 3 . . . 5 . . . . . . . Highest-Rated Group 1057 | . . . . 87 575 1057 855 710 87 87 87 87 87 . . . 294 . . . . . . . Highest-Rated Ally 159 | . . . . 32 159 159 96 96 29 29 29 29 29 . . . 68 . . . . . . . Initial UFD Resources 52 | . . . . 24 24 24 24 24 27 27 27 27 29 29 43 43 43 47 47 47 47 49 49 52 Total Orders 9 | . . . . . . 1 1 2 . 1 1 1 . . . . 2 . . . . . . . STAY 8 | . . . . . . 1 1 2 . 1 1 1 . . . . 1 . . . . . . . FOLLOW 1 | . . . . . . . . . . . . . . . . . 1 . . . . . . . Ally Attacks 470 | . . . . 47 117 88 32 111 23 7 5 . 10 . . . 30 . . . . . . . Total Damage 11733 | . . . . 758 2396 1828 795 3786 352 98 38 . 193 . . . 1489 . . . . . . . Kills 74 | . . . . 4 13 9 4 32 1 1 . . . . . . 10 . . . . . . . Allies Corrupted 3 | . . . . . . . . 1 1 . . . . . . . 1 . . . . . . . Allies Melted . | . . . . . . . . . . . . . . . . . . . . . . . . . Intel | -11 -10 -10 -8 -6 -6 -6 -6 -6 -5 -5 -5 -5 -4 -4 -4 -4 -4 -3 -3 -3 -3 -2 -2 -1 ------- Run | Yrd Mat Sub Scr Fac Ext Cet Arc Hub Fac Upp Upp Zhi Pro Fac Upp Upp War Pro Res Qua Frg Res Tes Acc Active Infowar (turns) 16198 | 211 131 1672 1954 698 850 757 683 1069 1456 740 516 73 154 636 204 199 1051 635 95 353 1088 411 286 276 Optics 11655 | . . . . 295 850 757 683 1069 1456 740 516 73 154 636 204 199 1051 635 95 353 935 392 286 276 Sensors 8267 | . . . . 610 850 257 . . 1442 726 516 71 154 636 204 199 279 635 95 353 535 411 216 78 Terrain 260 | 211 49 . . . . . . . . . . . . . . . . . . . . . . . Seismic 3900 | 55 131 1672 1954 88 . . . . . . . . . . . . . . . . . . . . T.N.C. 411 | . . . . 290 121 . . . . . . . . . . . . . . . . . . . Robot Analysis Total 10 | . . . 6 . . . . . . . . 4 . . . . . . . . . . . . Derelict Logs Recovered 14 | . . 1 5 . . . . . . 3 2 . 2 . 1 . . . . . . . . . Drone Launches . | . . . . . . . . . . . . . . . . . . . . . . . . . Drone Recoveries . | . . . . . . . . . . . . . . . . . . . . . . . . . Exploration | -11 -10 -10 -8 -6 -6 -6 -6 -6 -5 -5 -5 -5 -4 -4 -4 -4 -4 -3 -3 -3 -3 -2 -2 -1 ------------- Run | Yrd Mat Sub Scr Fac Ext Cet Arc Hub Fac Upp Upp Zhi Pro Fac Upp Upp War Pro Res Qua Frg Res Tes Acc Turns Passed 17936 | 283 1038 2049 1954 774 850 757 683 1069 1456 740 516 73 154 636 204 199 1051 635 95 353 1394 411 286 276 Spaces Moved 22034 | 93 537 1172 1202 2022 962 333 104 470 2875 1283 1057 152 350 1318 592 548 1265 835 223 833 1977 934 473 424 Core 2 | 2 . . . . . . . . . . . . . . . . . . . . . . . . Treads 1479 | 91 537 52 . . . 225 104 470 . . . . . . . . . . . . . . . . Legs 83 | . . . . . . . . . . . . . . . . . . . . . . . . 83 Wheels 2322 | . . 1120 1202 . . . . . . . . . . . . . . . . . . . . . Hover 12476 | . . . . . . . . . 1311 1283 1057 152 350 1318 592 548 1265 835 223 833 1302 934 473 . Flight 5672 | . . . . 2022 962 108 . . 1564 . . . . . . . . . . . 675 . . 341 Fastest Speed 5 | 50 160 150 145 17 5 6 160 160 20 35 21 40 40 31 31 31 31 34 21 34 5 33 33 21 Average Speed 52 | 157 160 152 146 24 22 117 160 160 28 39 39 40 40 34 31 31 31 35 32 34 29 33 34 42 Slowest Speed 320 | 160 160 320 150 28 103 160 160 160 150 40 40 40 40 35 31 31 34 37 34 34 122 33 112 120 Overloaded Moves 247 | . . . . 21 21 19 . . 44 2 34 . . . . . . . 18 . 88 . . . Propulsion Burnouts . | . . . . . . . . . . . . . . . . . . . . . . . . . Robots Hopped 20 | . . . . 6 2 . . . 7 . . . . . . . . . . . 4 . . 1 Potential Cave-ins 67 | . . . . . . . . . . . . . . . . . . . . . 60 . 2 5 Cave-ins Triggered 3 | . . . . . . . . . . . . . . . . . . . . . 3 . . . Teleports 57 | . . . . . . . . . . . . . . . . . . . . . 11 19 13 14 Exploration Rate (%) 64 | 5 70 61 87 49 82 83 87 60 51 97 95 61 62 37 90 66 87 86 8 82 43 33 89 32 Regions Visited 24 Branch Regions 17 Pre-discovered Areas 6 | . . . . . . . . . . 1 . 3 1 1 . . . . . . . . . . Known Exits Taken 19 | . . . . 1 1 1 1 1 1 1 1 1 1 1 1 1 1 1 1 1 . 1 1 . Unknown Exits Taken 5 | 1 1 1 1 . . . . . . . . . . . . . . . . . 1 . . . Scrap Searched 25 | . . 2 3 . . . . . . 4 4 . 4 . 5 2 . 1 . . . . . . Spaces Dug 429 | . 31 19 . 19 26 . . 18 90 18 21 . 24 12 1 1 29 74 3 5 8 14 2 14 Terrain Destroyed 870 | . 37 52 . 35 104 2 6 122 130 30 61 . 24 13 1 3 37 80 3 7 61 15 21 26 Melee 169 | . 10 4 . 19 . . . 1 35 3 3 . 1 10 1 1 29 15 3 5 8 14 2 5 Projectile 138 | . 4 . . . . 2 6 90 10 . . . . 3 . 2 1 . . 2 17 . 1 . AOE 556 | . 23 48 . 16 104 . . 31 85 27 58 . 23 . . . 7 64 . . 36 . 13 21 Terrain Rammed . | . . . . . . . . . . . . . . . . . . . . . . . . . Walls Destroyed . | . . . . . . . . . . . . . . . . . . . . . . . . . Machines Disabled . | . . . . . . . . . . . . . . . . . . . . . . . . . Actions | -11 -10 -10 -8 -6 -6 -6 -6 -6 -5 -5 -5 -5 -4 -4 -4 -4 -4 -3 -3 -3 -3 -2 -2 -1 --------- Run | Yrd Mat Sub Scr Fac Ext Cet Arc Hub Fac Upp Upp Zhi Pro Fac Upp Upp War Pro Res Qua Frg Res Tes Acc Total 26868 | 192 636 1341 1399 2221 1546 658 594 600 3316 1453 1119 161 358 1448 610 559 1737 1092 235 877 2620 1016 564 516 Wait 2727 | 71 8 43 172 59 480 251 474 28 160 66 38 . . 60 16 . 315 185 . 15 250 2 11 23 Move 21968 | 92 536 1171 1201 2010 957 332 103 469 2861 1282 1056 151 349 1317 591 547 1264 834 222 832 1965 933 472 421 Hop 18 | . . . . 5 2 . . . 6 . . . . . . . . . . . 4 . . 1 Pick Up 189 | 1 20 21 10 13 2 4 . 5 16 1 . 2 2 12 . 1 7 1 1 3 36 15 6 10 Fast Attach 96 | 7 1 . 1 9 . 11 4 2 13 . . 2 . 3 1 . 2 . . 2 22 4 4 8 Attach 125 | . 1 4 . 10 5 7 . 1 20 . . . . 2 . . 1 . 2 1 47 1 7 16 Detach 91 | . 2 . 3 5 7 9 1 1 17 . . . . . . . 1 . 2 . 31 2 2 8 Swap 181 | . 12 23 1 16 10 5 1 11 24 3 6 2 3 10 . 1 17 7 1 3 21 3 1 . Drop 160 | . 8 9 11 17 4 11 1 2 22 2 . 3 1 8 1 1 10 1 1 3 27 5 3 9 Fire 583 | 21 24 22 . 4 17 3 10 80 87 26 15 . 1 9 . 8 71 47 . 6 105 7 18 2 Melee 522 | . 24 48 . 69 21 25 . 1 74 3 4 1 2 24 1 1 29 17 6 12 58 44 40 18 Ram . | . . . . . . . . . . . . . . . . . . . . . . . . . Kick . | . . . . . . . . . . . . . . . . . . . . . . . . . Crush . | . . . . . . . . . . . . . . . . . . . . . . . . . Escape Stasis 90 | . . . . . 17 . . . 16 . . . . 3 . . . . . . 54 . . . Rewire 117 | . . . . 3 24 . . . . 70 . . . . . . 20 . . . . . . . Trap 1 | . . . . 1 . . . . . . . . . . . . . . . . . . . . Miscellaneous . | . . . . . . . . . . . . . . . . . . . . . . . . . Route ------- -11/Scrapyard -10/Materials (discovered 4 exits: [*Mat x2] / [*Min] / *Sub) -10/Subcaves (discovered 4 exits: [*Mat x2] / [*Rec] / *Scr) -8/Scraptown (discovered 2 exits: *Fac x2) -6/Factory (discovered 6 exits: *Fac x2 / *Low x2 / *Ext x2) -6/Extension (discovered 2 exits: *Fac / *Cet) -6/Cetus (discovered 2 exits: *Fac / *Arc) -6/Archives (discovered 3 exits: *Fac / *Hub x2) -6/Hub_04(d) (discovered 2 exits: *Fac x2) -5/Factory (discovered 4 exits: *Fac x2 / *Upp x2) -5/Upper Caves -5/Upper Caves (discovered 2 exits: *Fac / *Zhi) -5/Zhirov -4/Proximity Caves -4/Factory (discovered 5 exits: *Res x3 / *Upp x2) -4/Upper Caves -4/Upper Caves (discovered 2 exits: *Res / *War) -4/Warlord -3/Proximity Caves -3/Research -3/Quarantine (discovered 3 exits: *Res / [*Sec] / *Frg) -3/Protoforge -2/Research (discovered 3 exits: *Acc / *Tes x2) -2/Testing -1/Access (discovered 2 exits: *Sur / Com) To Epsilon Eridani History --------- Turn | Location | Event 15 | -11/Scrapyard | Discovered new exit (range 14) 284 | -11/Scrapyard | Entered Materials 307 | -10/Materials | Build established: Mutant 543 | -10/Materials | Discovered new exit (range 11) 752 | -10/Materials | Discovered new exit (range 8) 1032 | -10/Materials | Discovered new exit (range 15) 1217 | -10/Materials | Discovered new exit (range 16) 1322 | -10/Materials | Entered Subcaves 1323 | -10/Subcaves | Approached by a straggling Scientist 1509 | -10/Subcaves | Ambushed by angry Subdweller bent on revenge 1870 | -10/Subcaves | Learned Materials terminal intel 1888 | -10/Subcaves | Discovered new exit (range 5) 1912 | -10/Subcaves | Visited Clippyterm 1917 | -10/Subcaves | Learned Factory garrison access intel 1942 | -10/Subcaves | Shifting Twisted Machinery released Riot Gun 1946 | -10/Subcaves | Shifting Twisted Machinery released Scrap Shield 1959 | -10/Subcaves | Discovered new exit (range 15) 2222 | -10/Subcaves | Visited 4L-MR0's lab 2236 | -10/Subcaves | Found Gun Armor 2382 | -10/Subcaves | Discovered new exit (range 14) 2394 | -10/Subcaves | Core integrity fell below 50% 2781 | -10/Subcaves | A swath of the cavern ceiling suddenly collapsed 2870 | -10/Subcaves | Core integrity fell below 20% 3150 | -10/Subcaves | Build established: Scavenger-Mutant 3371 | -10/Subcaves | Entered Scraptown 3371 | -8/Scraptown | System corruption cleaned by C-Scrubber 3499 | -8/Scraptown | Visited UFD Registry 3499 | -8/Scraptown | Registered with UFD as "Zerokit" 3577 | -8/Scraptown | Scanned Subdweller tech in exchange for log data 3581 | -8/Scraptown | Learned Factory emergency access door positions 3583 | -8/Scraptown | Learned Factory security intel 3584 | -8/Scraptown | Learned 12 Factory zone layouts 3586 | -8/Scraptown | Learned Factory terminal intel 3601 | -8/Scraptown | Discovered new exit (range 11) 3647 | -8/Scraptown | Guru changed UFD alias to "Wrenchplate" 3686 | -8/Scraptown | Heard Great Nut preacher, LISTEN AND RECITE! 3998 | -8/Scraptown | Build established: Mutant 4046 | -8/Scraptown | Visited TADAMA 4085 | -8/Scraptown | Visited Spacefarers 4112 | -8/Scraptown | Visited Red Mages 4124 | -8/Scraptown | Visited Cyclists 4136 | -8/Scraptown | Entered Cyclist Reading Room 4175 | -8/Scraptown | Visited Comm Corps 4231 | -8/Scraptown | Visited IN-MT5's Study 4308 | -8/Scraptown | Visited Science Guys 4373 | -8/Scraptown | Visited Scrap Suit Storage 4403 | -8/Scraptown | Visited Analyses Database 4437 | -8/Scraptown | Visited Research Penetration Think Tank 4461 | -8/Scraptown | Visited A0-MCA Data Center 4470 | -8/Scraptown | Given a B- rating by A0-MCA 4473 | -8/Scraptown | Found A0-MCA's Component Scanner 4500 | -8/Scraptown | Visited Infowarlord's Domain 4510 | -8/Scraptown | Found Exp. Sensor Array 4539 | -8/Scraptown | Visited Abandonware Association 4553 | -8/Scraptown | Learned abandonware demo "TRNCOAT.EXE" 4556 | -8/Scraptown | Learned abandonware demo "OVRCLOCK.EXE" 4608 | -8/Scraptown | Delivered Scrap Shield to a Scientist 4742 | -8/Scraptown | Visited Scrapoid Pod Storage 4750 | -8/Scraptown | Found Scrapoid Pod 4776 | -8/Scraptown | Visited Curators Association 4808 | -8/Scraptown | Visited LU-1G1's Boring Crew 5246 | -8/Scraptown | Met Optimus 5246 | -8/Scraptown | Accepted into 0bPrime 5322 | -8/Scraptown | Discovered new exit (range 3) 5325 | -8/Scraptown | Entered Factory 5325 | -6/Factory | Evolved 8 slots: Propulsion x3, Utility x5 5329 | -6/Factory | Loaded intel: 28 terminal locations 5330 | -6/Factory | Loaded intel: 4 garrison access locations 5460 | -6/Factory | Discovered new exit (range 7) 5498 | -6/Factory | Discovered new exit (range 13) 5501 | -6/Factory | Identified exit to Factory 5528 | -6/Factory | Identified exit to Lower Caves 5528 | -6/Factory | Identified exit to Extension 5564 | -6/Factory | Discovered exit to Factory (range 8) 6003 | -6/Factory | Cargo convoy interrupted 6079 | -6/Factory | Found PL-3XN's Ring of Power 6098 | -6/Factory | Build established: Scout 6099 | -6/Factory | Entered Extension 6114 | -6/Extension | Rescued a captive Derelict 6165 | -6/Extension | Rescued A7 6204 | -6/Extension | Rescued a captive Derelict 6307 | -6/Extension | Rescued a captive Derelict 6309 | -6/Extension | Rescued a captive Derelict 6315 | -6/Extension | Rescued a captive Derelict 6317 | -6/Extension | Rescued a captive Derelict 6542 | -6/Extension | Spotted B-75 Beast 6555 | -6/Extension | Spotted B-75 Beast 6560 | -6/Extension | Destroyed B-75 Beast 6576 | -6/Extension | Attached CPS modules to A7. 6585 | -6/Extension | Allies destroyed B-75 Beast 6704 | -6/Extension | Rescued a captive Derelict 6706 | -6/Extension | Rescued a captive Derelict 6717 | -6/Extension | Rescued a captive Derelict 6718 | -6/Extension | Rescued a captive Derelict 6745 | -6/Extension | Rescued a captive Derelict 6777 | -6/Extension | Rescued a captive Derelict 6780 | -6/Extension | Rescued a captive Derelict 6870 | -6/Extension | Discovered exit to Factory (range 10) 6870 | -6/Extension | Discovered new exit (range 6) 6871 | -6/Extension | Identified exit to Cetus 6949 | -6/Extension | Entered Cetus 6949 | -6/Cetus | Accompanied by 16 allies (A7) 6954 | -6/Cetus | Acquired a Cetus Manufacturing Module code from A7 6962 | -6/Cetus | Spotted Cetus Guard 6962 | -6/Cetus | Spotted Cetus Guard 6962 | -6/Cetus | Spotted Cetus Guard 6962 | -6/Cetus | Spotted Cetus Guard 6964 | -6/Cetus | Scrapoid Pod released 06C05-D (x5) 6970 | -6/Cetus | Build established: Commander-Scout 6979 | -6/Cetus | Allies destroyed Cetus Guard 6980 | -6/Cetus | Allies destroyed Cetus Guard 7027 | -6/Cetus | Attached Gun Armor, gained temporary slots: Weapon x2 7115 | -6/Cetus | Escorted A7 to Cetus Mainframe 7126 | -6/Cetus | Discovered new exit (range 22) 7155 | -6/Cetus | Started Cetus Manufacturing Module 7180 | -6/Cetus | Manufactured an Enhanced Grunt 7205 | -6/Cetus | Manufactured an Enhanced Grunt 7213 | -6/Cetus | Spotted Cetus Guard 7213 | -6/Cetus | Spotted Cetus Guard 7216 | -6/Cetus | Spotted Cetus Guard 7219 | -6/Cetus | Spotted Cetus Guard 7230 | -6/Cetus | Manufactured an Enhanced Grunt 7235 | -6/Cetus | Allies destroyed Cetus Guard 7237 | -6/Cetus | Allies destroyed Cetus Guard 7247 | -6/Cetus | Allies destroyed Cetus Guard 7250 | -6/Cetus | Allies destroyed Cetus Guard 7251 | -6/Cetus | Discovered exit to Factory (range 22) 7255 | -6/Cetus | Manufactured an Enhanced Grunt 7274 | -6/Cetus | Lost 4 allies 7274 | -6/Cetus | Met Revision 17 7280 | -6/Cetus | Manufactured an Enhanced Grunt 7291 | -6/Cetus | System corruption reached 10% 7343 | -6/Cetus | Identified exit to Archives 7494 | -6/Cetus | Build established: Scavenger-Tank 7624 | -6/Cetus | Murdered A7 7627 | -6/Cetus | Extracted ID and sensor layout for unrecognized location from A7's data core 7631 | -6/Cetus | Found Med. Regenerative Plating 7699 | -6/Cetus | Security sweep announced 7706 | -6/Cetus | Entered Archives 7706 | -6/Archives | Accompanied by 18 allies 7745 | -6/Archives | Discovered new exit (range 22) 7758 | -6/Archives | Discovered new exit (range 20) 7765 | -6/Archives | Lost 5 allies 7895 | -6/Archives | Identified exit to Hub_04(d) 8074 | -6/Archives | Discovered exit to Factory (range 18) 8389 | -6/Archives | Entered Hub_04(d) 8389 | -6/Hub_04(d) | Accompanied by 13 allies 8603 | -6/Hub_04(d) | Discovered exit to Factory (range 22) 8739 | -6/Hub_04(d) | First assault squad dispatched 8828 | -6/Hub_04(d) | Lost 4 allies 9301 | -6/Hub_04(d) | Garrison activated, responded to threat 9346 | -6/Hub_04(d) | Discovered exit to Factory (range 5) 9387 | -6/Hub_04(d) | Network Hub disabled 9411 | -6/Hub_04(d) | Spotted Lightning 9411 | -6/Hub_04(d) | Spotted Lightning 9417 | -6/Hub_04(d) | Spotted Lightning 9458 | -6/Hub_04(d) | Entered Factory 9458 | -5/Factory | Evolved 2 slots: Utility x2 9459 | -5/Factory | Identified exit to Upper Caves 9744 | -5/Factory | Build established: Scavenger-Sprinter 9863 | -5/Factory | Discovered new exit (range 13) 9888 | -5/Factory | Discovered new exit (range 7) 9889 | -5/Factory | Identified exit to Factory 9977 | -5/Factory | P-70 Sage assimilated allied G-50 Soldier 10187 | -5/Factory | Build established: Scout 10525 | -5/Factory | Repaired Hyp. Mass Driver 10658 | -5/Factory | First assault squad dispatched 10762 | -5/Factory | Found Exp. Targeting Computer 10765 | -5/Factory | Found Exp. Targeting Computer 10914 | -5/Factory | Entered Upper Caves 10916 | -5/Upper Caves | UFD Scientist delivered a prototype 10935 | -5/Upper Caves | Found Enh. Scrap Shield 11019 | -5/Upper Caves | Learned 4 Factory zone layouts 11022 | -5/Upper Caves | Learned location of 1 exit from Factory 11526 | -5/Upper Caves | Discovered new exit (range 9) 11529 | -5/Upper Caves | Identified exit to Upper Caves 11630 | -5/Upper Caves | Learned Armory garrison access intel 11630 | -5/Upper Caves | Learned Armory stockpile data 11630 | -5/Upper Caves | Learned Factory stockpile data 11630 | -5/Upper Caves | Learned Extension trap positions 11654 | -5/Upper Caves | Entered another Upper Caves area 11654 | -5/Upper Caves | Accompanied by 3 allies 11697 | -5/Upper Caves | Discovered exit to Factory (range 4) 11760 | -5/Upper Caves | Attracted the attention of an 0b10 checkpoint 11836 | -5/Upper Caves | Learned Factory emergency access door positions 11856 | -5/Upper Caves | Learned location of 1 exit from Factory 11975 | -5/Upper Caves | Discovered new exit (range 13) 11979 | -5/Upper Caves | Identified exit to Zhirov 12131 | -5/Upper Caves | Learned Armory garrison access intel 12131 | -5/Upper Caves | Learned Factory garrison access intel 12131 | -5/Upper Caves | Learned Extension security intel 12131 | -5/Upper Caves | Learned Armory stockpile data 12131 | -5/Upper Caves | Learned Research trap positions 12131 | -5/Upper Caves | Learned location of 1 exit from Research 12132 | -5/Upper Caves | Attracted the attention of an 0b10 base 12170 | -5/Upper Caves | Entered Zhirov 12170 | -5/Zhirov | Accompanied by 3 allies 12170 | -5/Zhirov | Discovered new exit (range 3) 12171 | -5/Zhirov | Identified exit to Proximity Caves 12179 | -5/Zhirov | Met Zhirov 12187 | -5/Zhirov | Learned location of Quarantine (-3) 12187 | -5/Zhirov | Learned location of Testing (-2) 12187 | -5/Zhirov | Learned location of Command (-1) 12190 | -5/Zhirov | Zhirov requested help retrieving the SGEMP Prototype 12196 | -5/Zhirov | Found Alien Artifact 12196 | -5/Zhirov | Identified Integrated Reactor 12196 | -5/Zhirov | Installed Integrated Reactor, increased core energy generation (+10) 12206 | -5/Zhirov | Found Alien Artifact 12243 | -5/Zhirov | Entered Proximity Caves 12243 | -4/Proximity Caves | Accompanied by 3 allies 12246 | -4/Proximity Caves | P-70 Sage assimilated allied Soldier 6b 12256 | -4/Proximity Caves | Found Alien Artifact 12271 | -4/Proximity Caves | Learned location of Armory (-3) 12321 | -4/Proximity Caves | Spotter reported a threat 12368 | -4/Proximity Caves | Learned 4 Research zone layouts 12380 | -4/Proximity Caves | Discovered exit to Factory (range 7) 12397 | -4/Proximity Caves | Entered Factory 12397 | -4/Factory | Evolved 2 slots: Propulsion x1, Utility x1 12398 | -4/Factory | Identified exit to Research 12402 | -4/Factory | Loaded intel: 4 garrison access locations 12432 | -4/Factory | Loaded intel: 8 recycling unit locations 12432 | -4/Factory | Watched by a mysterious "MATRIX" hacker. 12467 | -4/Factory | Spotted B-86 Titan 12611 | -4/Factory | Learned location of Protoforge (-3) 12716 | -4/Factory | Identified exit to Upper Caves 12811 | -4/Factory | Discovered exit to Research (range 15) 12817 | -4/Factory | Build established: Scientist-Scout 12964 | -4/Factory | Fabricated Cmb. Linear Gravjet (x2) 13033 | -4/Factory | Entered Upper Caves 13127 | -4/Upper Caves | Encountered a Warlord checkpoint 13168 | -4/Upper Caves | Discovered new exit (range 16) 13170 | -4/Upper Caves | Learned Research machine intel 13237 | -4/Upper Caves | Identified exit to Upper Caves 13237 | -4/Upper Caves | Entered another Upper Caves area 13238 | -4/Upper Caves | Identified exit to Warlord 13261 | -4/Upper Caves | Discovered exit to Research (range 12) 13276 | -4/Upper Caves | Build established: Scout 13385 | -4/Upper Caves | Encountered a Warlord checkpoint 13386 | -4/Upper Caves | Found DCF Scrap (12 items) 13436 | -4/Upper Caves | Entered Warlord 13447 | -4/Warlord | System corruption cleaned by Quarantine Array 13636 | -4/Warlord | Received a Watcher feed algorithm from an ecstatic Tinkerer 13670 | -4/Warlord | Found Vortex Chain Reactor 13685 | -4/Warlord | Warlord's base attacked by MAIN.C 13710 | -4/Warlord | Found Vortex Driver 13713 | -4/Warlord | Found Vortex Driver 13809 | -4/Warlord | Destroyed 7 combat bots 13886 | -4/Warlord | Warlord forces counterattacked 13942 | -4/Warlord | Build established: Commander-Sprinter 13957 | -4/Warlord | Destroyed 14 combat bots 13985 | -4/Warlord | Spotted B-90 Cyclops 14007 | -4/Warlord | Discovered new exit (range 15) 14010 | -4/Warlord | Identified exit to Proximity Caves 14085 | -4/Warlord | Spotted B-86 Titan 14085 | -4/Warlord | Spotted B-90 Cyclops 14127 | -4/Warlord | Lost 4 allies 14185 | -4/Warlord | Spotted Executioner 14185 | -4/Warlord | Spotted Striker 14227 | -4/Warlord | Lost 6 allies 14285 | -4/Warlord | Spotted Striker 14285 | -4/Warlord | Spotted Executioner 14302 | -4/Warlord | Destroyed Striker 14337 | -4/Warlord | Lost 11 allies 14360 | -4/Warlord | Warlord base infiltrated, sounded retreat 14370 | -4/Warlord | Lost 4 allies 14386 | -4/Warlord | Spotted B-86 Titan 14386 | -4/Warlord | Spotted B-90 Cyclops 14401 | -4/Warlord | Spotted Executioner 14417 | -4/Warlord | Destroyed B-90 Cyclops 14441 | -4/Warlord | Attacked by Warlord forces 14447 | -4/Warlord | Spotted UQ-9AE(B) 14471 | -4/Warlord | Destroyed UQ-9AE(B) 14485 | -4/Warlord | Spotted Striker 14485 | -4/Warlord | Spotted Executioner 14487 | -4/Warlord | Spotted Striker 14487 | -4/Warlord | Entered Proximity Caves 14652 | -3/Proximity Caves | Attracted the attention of an 0b10 base 14700 | -3/Proximity Caves | Destroyed 8 combat bots 14736 | -3/Proximity Caves | Build established: Scout 15107 | -3/Proximity Caves | Spotted B-86 Titan 15118 | -3/Proximity Caves | Discovered exit to Research (range 10) 15122 | -3/Proximity Caves | Entered Research 15122 | -3/Research | Evolved 2 slots: Power x1, Propulsion x1 15123 | -3/Research | Identified exit to Quarantine 15125 | -3/Research | Loaded intel: 69 trap records 15126 | -3/Research | Loaded intel: 121 machine locations 15213 | -3/Research | Spotted B-90 Cyclops 15213 | -3/Research | Spotted B-86 Titan 15217 | -3/Research | Entered Quarantine 15222 | -3/Quarantine | Found Alien Artifact 15229 | -3/Quarantine | Identified Terrabomb 15324 | -3/Quarantine | Discovered new exit (range 19) 15345 | -3/Quarantine | Found Alien Artifact 15345 | -3/Quarantine | Identified Dimensional Node Initializer (x2) 15345 | -3/Quarantine | Initialized slip node 15423 | -3/Quarantine | Found Alien Artifact 15545 | -3/Quarantine | Spotted Fortress 15569 | -3/Quarantine | Discovered new exit (range 5) 15569 | -3/Quarantine | Discovered new exit (range 6) 15570 | -3/Quarantine | Identified exit to Protoforge 15570 | -3/Quarantine | Entered Protoforge 15609 | -3/Protoforge | Superfortress began startup sequence 15627 | -3/Protoforge | Spotted Hotshot 15627 | -3/Protoforge | Spotted Hotshot 15627 | -3/Protoforge | Spotted Hotshot 15629 | -3/Protoforge | Identified Transdimensional Reconstructor 15629 | -3/Protoforge | Identified Subatomic Replicator 15711 | -3/Protoforge | Destroyed 9 combat bots 15722 | -3/Protoforge | Spotted Hotshot 15726 | -3/Protoforge | Spotted Hotshot 15726 | -3/Protoforge | Spotted Hotshot 15765 | -3/Protoforge | Found Cep. Weapon Articulator 15771 | -3/Protoforge | Found Cep. Chromion Battery 15828 | -3/Protoforge | Spotted Immortal 15828 | -3/Protoforge | Spotted Immortal 15865 | -3/Protoforge | Found Crosscalibrator 15878 | -3/Protoforge | Destroyed 7 combat bots 15957 | -3/Protoforge | Spotted Decapitator 15957 | -3/Protoforge | Spotted Decapitator 15957 | -3/Protoforge | Spotted Decapitator 15957 | -3/Protoforge | Spotted Decapitator 16001 | -3/Protoforge | Destroyed Immortal 16013 | -3/Protoforge | Destroyed Decapitator 16020 | -3/Protoforge | Destroyed Decapitator 16024 | -3/Protoforge | Destroyed Decapitator 16024 | -3/Protoforge | Destroyed Decapitator 16039 | -3/Protoforge | Found Exp. Terror Saw 16042 | -3/Protoforge | Destroyed Immortal 16045 | -3/Protoforge | Lost 3 parts (1u2w) 16053 | -3/Protoforge | Found Exp. Jetlance 16070 | -3/Protoforge | First assault squad dispatched 16081 | -3/Protoforge | Found Cep. Zero-point Core 16086 | -3/Protoforge | Found Faulty Cep. Zero-point Core 16091 | -3/Protoforge | Found Faulty Cep. Zero-point Core 16129 | -3/Protoforge | Forge Plexus network access discovered 16198 | -3/Protoforge | Found Cep. Gyrokinetic System 16206 | -3/Protoforge | Lost 4 parts (1p1n1u1w) 16208 | -3/Protoforge | Found Cep. Combat Aerolev Unit 16215 | -3/Protoforge | Found Faulty Cep. Gyrokinetic System 16315 | -3/Protoforge | Spotted V592-u 16315 | -3/Protoforge | Spotted V938-r 16457 | -3/Protoforge | Used Terrabomb 16457 | -3/Protoforge | Spotted Decapitator 16457 | -3/Protoforge | Spotted Decapitator 16462 | -3/Protoforge | Spotted V543-k 16479 | -3/Protoforge | Found Exp. Jetlance 16482 | -3/Protoforge | Destroyed Decapitator 16485 | -3/Protoforge | Destroyed Decapitator 16488 | -3/Protoforge | Found Cep. Heavy Railcannon 16508 | -3/Protoforge | Core integrity fell below 50% 16508 | -3/Protoforge | Spotted V499-z 16516 | -3/Protoforge | Warped through subspace 16526 | -3/Protoforge | Crushed by falling debris 16527 | -3/Protoforge | System corruption reached 10% 16528 | -3/Protoforge | Crushed by falling debris 16559 | -3/Protoforge | Lost 13 parts (2n8u3w) 16596 | -3/Protoforge | Found Faulty Cep. Fieldthrust Drive 16604 | -3/Protoforge | Found Faulty Cep. Fieldthrust Drive 16686 | -3/Protoforge | Spotted Decapitator 16686 | -3/Protoforge | Spotted Decapitator 16686 | -3/Protoforge | Spotted Decapitator 16686 | -3/Protoforge | Spotted Decapitator 16710 | -3/Protoforge | Additional patrols dispatched to research labs 16716 | -3/Protoforge | Found Transdimensional Reconstructor 16721 | -3/Protoforge | Found Cep. Navigation Harness 16734 | -3/Protoforge | Found Cep. Antigrav Storage Unit 16736 | -3/Protoforge | Spotted AP7-3 16736 | -3/Protoforge | Spotted AP7-3 16738 | -3/Protoforge | Spotted Immortal 16738 | -3/Protoforge | Spotted Immortal 16766 | -3/Protoforge | Spotted V041-y 16774 | -3/Protoforge | Found Femtoactuators 16776 | -3/Protoforge | Found Cep. Countertargeting System 16779 | -3/Protoforge | Found Exp. Force Booster 16782 | -3/Protoforge | Found Faulty Femtoactuators 16810 | -3/Protoforge | Found Exp. Jetlance 16812 | -3/Protoforge | Found Cep. Deflector Sword 16814 | -3/Protoforge | Found Cep. Miniperforator 16821 | -3/Protoforge | Crushed by falling debris 16955 | -3/Protoforge | Destroyed Hotshot 16955 | -3/Protoforge | Destroyed Hotshot 16963 | -3/Protoforge | Discovered new exit (range 4) 16964 | -3/Protoforge | Entered Research 16964 | -2/Research | Evolved 2 slots: Propulsion x1, Utility x1 17046 | -2/Research | Unchained authorized (V4-D3R) 17206 | -2/Research | Discovered new exit (range 20) 17212 | -2/Research | Identified exit to Access 17289 | -2/Research | Identified exit to Testing 17368 | -2/Research | Spotted Striker 17369 | -2/Research | Cargo convoy interrupted 17375 | -2/Research | Entered Testing 17408 | -2/Testing | Found Spectral Analyzer 17434 | -2/Testing | Discovered exit to Access (range 9) 17453 | -2/Testing | Found 2N-1CE's Frost Array 17456 | -2/Testing | Unchained authorized (V4-D3R) 17461 | -2/Testing | Spotted Striker 17462 | -2/Testing | Spotted Striker 17526 | -2/Testing | Spotted PG-Q71J2882QE 17548 | -2/Testing | Found Thermal Barrier 17578 | -2/Testing | Found Imp. Potential Cannon 17590 | -2/Testing | System corruption reached 10% 17623 | -2/Testing | Lost 5 parts (1n4u) 17633 | -2/Testing | Unstable Terrabomb Derivative detonated 17661 | -2/Testing | Entered Access 17661 | -1/Access | Evolved 2 slots: Utility x1, Weapon x1 17690 | -1/Access | Lost 8 parts (1p4n2u1w) 17758 | -1/Access | Spotted B-99 Colossus 17859 | -1/Access | Identified exit to Command 17884 | -1/Access | Energy Cycler disabled 17928 | -1/Access | Warped through subspace 17933 | -1/Access | Spotted B-99 Colossus 17933 | -1/Access | Spotted B-99 Colossus 17937 | -1/Access | Discovered new exit (range 2) 17937 | -1/Access | Identified exit to Surface 17937 | *** | Escaped! Last Messages --------------- 17902_ W-44 Eye sends out distress signal. 17902_ K-01 Serf cleans the Garrison Access. 17907_ Drawn through space via semi-controlled quantum shift. 17915_ Connecting with Terminal... >>Inventory(Prototypes) Retrieving prototype inventory records... Found 1 registered prototype stockpile: GCO0ZNEEL9: Exp. Power Amplifier Downloaded coordinate data. 17918_ Thermal Barrier destroyed. 17924_ Drawn through space via semi-controlled quantum shift. 17924_ Slug penetrates Wall. 17926_ Y-72 Warden suffers critical hit (Impale). 17926_ Destroyed Particle Reactor. 17928_ Xenon Bombardment Thruster destroyed. 17928_ Adv. Sensor Array destroyed. 17928_ Warped through subspace. 17932_ Drawn through space via semi-controlled quantum shift. 17937_ EXIT=FOUND 17937_ EXIT=IDENTIFIED: SURFACE Map ----- +----------------------------------------------------+ | ?????????????????????????????????????????????????? | | ?????????????????????????????????????????????????? | | ?????????????????????????????????????????????????? | | ?????????????????????????????????????????????????? | | ?????????????????????????????????????????????????? | | ?????????????????????????????????????????????????? | | ?????????????????????????????????????????????????? | | ?????????????????????????????????????????????????? | | ?????????????????????????????????????????????????? | | #????????????????????????????????????????????????? | | ????????????????????????????????????????????????? | | #????????????????????????????????????????????????? | | #????????????????????????????????????????????????? | | #????????????????????????????????????????????????? | | #????????????????????????????????????????????????? | | #????????????????????????????????????????????????? | | #????????????????????????????????????????????????? | | #????????????????????????????????????????????????? | | #????????????????????????????????????????????????? | | #????????????????????????????????????????????????? | | #????????????????????????????????????????????????? | | #??????????????? "???????????????????????????????? | | #???????????? "???????????????????????????????? | | ########## "????""""""?????????????????????? | | "????" "?????????????????????? | | "????" "@ "?????????????????????? | | "????" "" "?????????????????????? | | "????" "?????????????????????? | | ########## "????""""""?????????????????????? | | #??????????????????????????????????????????? | | #??????????????????????????????????????????? | | " #??????????????????????????????????????????? | | "" #??????????????????????????????????????????? | | """ #??????????????????????????????????????????? | | " #??????????????????????????????????????????? | | #??????????????????????????????????????????? | | #??????????????????????????????????????????? | | #??????????????????????????????????????????? | | #######????+##??###??????????????????????????????? | | ??????????? ? #?????????????????????????????? | | ??????????? ? ??????????????????????????????? | | ??????????? ? ??????????????????????????????? | | ??????????? ? ??????????????????????????????? | | ??????????? ? ??????????????????????????????? | | ??????????# ?? ??????????????????????????????? | | ########### ?? ??????????????????????????????? | | """ ## ??? ??????????????????????????????? | | ""T"" ## ??? ??????????????????????????????? | | "" "" ## ??? #??????????????????????????????? | | ## ??? #??????????????????????????????? | +----------------------------------------------------+ Best States ------------- Heat Dissipation 152 Energy Generation 71 Energy Capacity 2200 Matter Stores 300 Matter Capacity 300 Sight Range 24 Robot Scan Range 20 Terrain Scan Range 16 Terrain Scan Density 10 Armor Coverage 600 Utility Shielding 90 Projectile Deflection 15 Weapon Cycling 20 Melee Speed Boost 50 Phase Shifting 15 Evasion (%) 86 Targeting Accuracy 30 Melee Accuracy 8 Core Analysis 6 Recoil Reduction 5 Force Boost 50 Salvage Targeting 4 Offensive Hacking 14 Defensive Hacking 10 Item Schematics ----------------- CPS Tube | -5/Factory | Scanalyzed Exp. Cesium-ion Thruster | -5/Factory | Scanalyzed Assault Drone Bay | -5/Zhirov | Free Exp. Heat Sink | -5/Zhirov | Free Exp. Optical Array | -5/Zhirov | Free Imp. Arc Thrower | -5/Zhirov | Free Mni. Smartbomb Launcher | -3/Quarantine | Archive Electron Diverter | -3/Quarantine | Archive Neutron Missile Launcher | -3/Quarantine | Archive Diametric Drive | -3/Quarantine | Archive Imp. Matter Neutralizer | -3/Protoforge | Archive Adv. Micro-nuke Launcher | -3/Protoforge | Archive Hvy. Gatling Laser | -3/Protoforge | Archive Com. Particle Reactor | -3/Protoforge | Archive Hds. Centrium Wheel | -3/Protoforge | Archive Hvy. Antimatter Reactor | -3/Protoforge | Archive Cld. Nuclear Pulse Thruster | -3/Protoforge | Archive Centrium Heavy Treads | -3/Protoforge | Archive Plasma Sword | -2/Testing | Archive Exp. Thermal Shield | -2/Testing | Archive Exp. Matter Compressor | -2/Testing | Archive Adv. Kinecellerator | -2/Testing | Archive Robot Schematics ------------------ T-07 Excavator | -3/Protoforge | Archive B-74 Champion | -2/Testing | Archive A-02 Transporter | -2/Testing | Archive Fabricated ------------ Cmb. Linear Gravjet | x2 | -4/Factory | Preloaded Repaired ---------- Hyp. Mass Driver | 26% | -5/Factory Studied --------- Power Sword | -5/Factory | Hacked Adv. Plasma Cannon | -5/Factory | Hacked Hyp. Gauss Cannon | -5/Factory | Hacked Hyp. Mass Driver | -4/Factory | Hacked Cmb. Gravmag System | -4/Factory | Hacked Mic. Fission Core | -4/Factory | Hacked Cmb. Linear Gravjet | -3/Quarantine | Hacked Nova Cannon | -3/Protoforge | Hacked Alien Tech Used ----------------- Integrated Reactor Dimensional Node Initializer Terrabomb Transdimensional Reconstructor Achievements -------------- None Challenges ------------ None Game ------ Seed AntisysConstructPower Manual? 0 Play Time 04:08:36 Cumulative 1181.8 hours Start 2026.04.25 @ 18:34:19 End 2026.04.26 @ 14:04:50 Sessions 3 Manual Loads 0 Difficulty Rogue Special Mode None Game No. 369 Rogue 367 Adventurer 2 Explorer 0 Win Type 0 Total 92 Types 26/22/20/1/1/1/15/2/1/3 Lore% 98 Gallery% 92 Achievement% 87 Wizard Run 0 Options --------- Layout 0 ASCII 0 Keyboard 1 Movement Numpad Keybinds 0 Fullscreen 1 Font 24/Smallcaps Map View 76x50 Zoom Use 0% Tactical HUD 1 Map Filters NONE Filters NONE Steam 1 RUN: 829df58a-d551-4be7-8826-6f39f49ee6da